[Event "MPL 19th IND-ch Teams Women 2022"]
[Site "Jalgaon"]
[Date "2022.04.09"]
[Round "2.4"]
[White "Vaishali R"]
[Black "Shah, Vishwa"]
[Result "1-0"]
[ECO "A43"]
[WhiteElo "2403"]
[BlackElo "1911"]
[Annotator "TA"]
[PlyCount "202"]
[EventDate "2022.04.10"]
[EventType "team-tourn"]
[EventCountry "IND"]
[SourceTitle "playchess.com"]
[Source "ChessBase"]
[SourceQuality "1"]
[TimeControl "5400+30"]

{[%evp 9,202,-12,49,46,93,41,79,22,17,-12,0,-29,0,0,14,0,0,-3,0,-37,-27,-42,-18,-29,0,-37,24,-60,-45,-62,-13,-16,-13,-24,0,-13,23,0,0,0,7,15,10,28,32,20,40,11,10,0,0,0,0,0,73,24,81,16,23,0,103,0,67,-335,-336,-333,-351,-578,-394,-661,-616,-1219,-1125,-1090,-1092,-1077,-1071,-1043,-669,-887,-651,-632,-641,-618,-614,-618,-624,-565,-380,-328,0,-201,0,0,0,0,0,0,0,0,0,0,0,0,0,0,0,0,0,0,0,0,8,8,8,0,0,0,8,8,8,-18,-23,-20,0,0,0,0,138,132,333,0,0,0,232,0,0,0,0,0,0,0,0,0,0,0,0,0,0,0,0,-47,1291,0,0,0,0,0,0,0,0,0,0,0,0,0,0,0,0,0,0,0,0,0,0,0,0,0,0,0,0,-50,2312,2322,5591,1872,1723,0,5620,5218,5177,4827,4702,1391,4914]} 1. d4 {[%emt 0:00:39]} Nf6 {[%emt 0:00:04]} 2. Nf3 {[%emt 0:00:10]} c5 {[%emt 0:00:06]} 3. d5 {[%emt 0:00:12]} b5 {[%emt 0:00:07]} 4. e4 {[%emt 0:00:16]} Nxe4 {[%emt 0:01:23]} 5. Bd3 {[%emt 0:00:05]} Nf6 {[%emt 0:04:25]} (5... Qa5+ $1 $11 6. c3 Nf6) 6. Bxb5 $14 {[%emt 0:01:04] A43: Schmid Benoni.} Bb7 {[%emt 0:02:16]} (6... a6 $14 7. Bd3 d6) 7. Nc3 {[%emt 0:01:33]} (7. c4 $1 $16) 7... g6 {[%emt 0:01:29] [#]} 8. d6 $146 {[%emt 0:07:42]} (8. Be3 $16) ({Predecessor:} 8. O-O Bg7 9. d6 O-O 10. dxe7 Qxe7 11. Re1 Qd8 12. Bg5 d5 13. Qd2 d4 14. Bxf6 Qxf6 {1-0 (57) Garcia Almaguer,J (2176)-Risting,E (2345) Chess.com INT 2019}) 8... e6 {[%emt 0:09:00]} 9. Bf4 {[%emt 0:02:40]} Bg7 {[%emt 0:01:06]} 10. Be5 {[%emt 0:13:54]} Qa5 {[%emt 0:07:47]} 11. O-O {[%emt 0:04:22]} Nc6 {[%emt 0:10:10]} 12. Bxc6 {[%emt 0:03:12]} Bxc6 {[%emt 0:00:09]} 13. Qe2 {[%emt 0:00:17]} O-O 14. Rad1 {[%emt 0:00:18]} Rab8 {[%emt 0:04:51]} 15. b3 {[%emt 0:03:51]} Qb4 {[%emt 0:08:23]} 16. h3 {[%emt 0:02:38]} Ne4 {[%emt 0:12:07]} 17. Bxg7 {[%emt 0:18:47]} Kxg7 {[%emt 0:00:07]} ({Black should try} 17... Nxc3 $15 18. Bxc3 Qxc3) 18. Nb1 {[%emt 0:07:52]} (18. Nxe4 $11 Qxe4 19. Qxe4 Bxe4 20. Ne5) 18... f6 $15 {[%emt 0:00:29]} 19. c4 {[%emt 0:01:52]} Qb7 {[%emt 0:09:05]} (19... a5 $15 {feels stronger.}) 20. Rd3 $11 {[%emt 0:01:02]} Rbe8 {[%emt 0:06:54]} 21. Rfd1 {[%emt 0:04:46]} Kg8 {[%emt 0:09:42]} 22. h4 {[%emt 0:03:18]} Rf7 {[%emt 0:01:10]} 23. Nh2 {[%emt 0:02:14]} Rg7 {[%emt 0:01:50]} 24. Qe1 {[%emt 0:12:40] Threatens to win with f3.} f5 {[%emt 0:03:26]} 25. f3 {[%emt 0:00:22]} Nf6 {[%emt 0:02:18]} 26. Qe5 {[%emt 0:00:05][%csl LRc5,LRf6]} Rf8 {[%emt 0:00:35]} 27. Qxc5 {[%emt 0:01:03]} g5 {[%emt 0:00:55]} 28. hxg5 {[%emt 0:00:25]} Rxg5 {[%emt 0:00:01]} 29. Nc3 {[%emt 0:00:22][%cal Bb1c3,Bc3e2,Be2f4][%mdl 32]} Rf7 {[%emt 0:01:19]} 30. Ne2 {[%emt 0:06:01]} Rfg7 {[%emt 0:01:47]} 31. Nf4 {[%emt 0:00:05]} h5 {[%emt 0:00:27]} (31... h6 $1 $11) 32. Qe5 {[%emt 0:01:43]} (32. Qd4 $16 Qb6 33. c5) 32... Kf7 {[%emt 0:00:55]} (32... Qb6+ $1 $11 33. c5 Qd8) 33. Qe1 {[%emt 0:00:53]} (33. R1d2 $16) 33... Qa8 {[%emt 0:00:19][%cal Oh5h4]} 34. b4 {[%emt 0:00:18]} Bb7 {[%emt 0:00:32]} (34... Ne4 $11 {keeps the balance.} 35. b5 (35. fxe4 Bxe4 36. Kf1 e5 $15) 35... Bb7) 35. b5 {[%emt 0:00:41]} (35. R1d2 $16) 35... Qc8 {[%emt 0:00:32]} (35... Ne4 $11 36. Kh1 (36. fxe4 Bxe4 37. g3 h4 $17) 36... Ng3+ 37. Kg1 Ne4) 36. Qb4 $2 {[%emt 0:00:03][%mdl 8192] &Bianco is much more active.} (36. Rc1 $1 $14 {stays ahead.}) 36... e5 $19 {[%emt 0:00:20][%cal Be6e5,Be5f4,Bf4e3][%mdl 32]} 37. c5 {[%emt 0:01:03]} exf4 {[%emt 0:00:04]} 38. R1d2 $2 {[%emt 0:00:25]} (38. Qc4+ Kf8 39. R1d2) 38... Qg8 {[%emt 0:01:13][%cal Rg5g2]} 39. Qc4+ $2 {[%emt 0:00:27] [#]} (39. Qb2 Nd5 40. c6 dxc6 41. bxc6 Bxc6 42. d7) 39... Nd5 $1 {[%emt 0:00:34][%cal Rg5g2]} 40. Qc2 {[%emt 0:00:36]} (40. Kh1 Rxg2) 40... Ne3 {[%emt 0:00:03]} 41. Rxe3 {[%emt 0:00:28]} fxe3 {[%emt 0:00:07]} 42. Re2 {[%emt 0:00:02]} f4 {[%emt 0:00:19]} 43. Kh1 {[%emt 0:01:01]} Bd5 {[%emt 0:01:24]} 44. c6 {[%emt 0:00:20]} Qc8 {[%emt 0:00:05][%cal Rd7c6]} 45. c7 {[%emt 0:00:26]} Kg8 {[%emt 0:00:16]} 46. Qa4 {[%emt 0:00:19]} Rf7 {[%emt 0:01:06]} 47. Qxa7 {[%emt 0:00:40]} Bc4 {[%emt 0:00:14]} 48. b6 {[%emt 0:00:41]} Rb5 {[%emt 0:00:10]} (48... Bxe2 49. b7 Qf8 50. c8=Q $18) 49. Re1 {[%emt 0:00:13]} Rb2 $2 {[%emt 0:01:08]} (49... Bd5 $19 50. a4 Rb2) 50. Qa3 $2 {[%emt 0:00:51]} (50. Qa5 $1 $11 Rb5 51. Qa4 Rxb6 52. Qxc4 Rxd6 53. Qc5) 50... Rxb6 $2 {[%emt 0:00:26]} (50... Rxa2 51. Qc5 Ba6 52. Qg5+ Kh7 53. Qxh5+ Kg7 54. Qg5+ Kf8 55. Ng4 Rh7+ 56. Nh6 Rxh6+ 57. Qxh6+ Kg8 58. Qxf4 $18) (50... Rd2 $1 $19 {aiming for ...Ba6.} 51. Qc5 Ba6) 51. Qc5 $11 {[%emt 0:00:02][%csl LRb6,LRc4,LRh5]} Rc6 {[%emt 0:01:42]} 52. Qg5+ {[%emt 0:00:02]} Kh8 {[%emt 0:00:20]} 53. Qxh5+ {[%emt 0:00:14]} Kg8 {[%emt 0:00:28]} 54. Qg5+ {[%emt 0:00:55]} Kh8 {[%emt 0:00:11]} 55. Qh4+ {[%emt 0:01:12]} Kg8 {[%emt 0:01:23]} 56. Qg5+ {[%emt 0:00:25]} Kh8 {[%emt 0:00:10]} 57. Qh4+ {[%emt 0:00:39]} Kg8 {[%emt 0:00:04]} 58. Qg5+ {[%emt 0:00:29]} Kh8 {[%emt 0:00:06]} 59. Qd8+ {[%emt 0:00:06]} Rf8 {[%emt 0:00:35]} 60. Qh4+ {[%emt 0:00:05]} Kg7 {[%emt 0:00:21]} 61. Qg5+ {[%emt 0:00:02]} Kh7 $1 {[%emt 0:01:07]} 62. Qh5+ {[%emt 0:01:32]} Kg7 $1 {[%emt 0:00:07]} 63. Qg5+ {[%emt 0:00:02]} Kh7 $1 {[%emt 0:00:10]} 64. Ng4 {[%emt 0:01:15]} Qe8 {[%emt 0:00:45]} 65. Nf6+ {[%emt 0:00:15] [#]} Rxf6 $1 {[%emt 0:00:04]} 66. Qxf6 {[%emt 0:00:02]} Qh5+ {[%emt 0:00:16]} (66... Bxa2 67. Qxf4 e2 68. Kg1 $18) 67. Kg1 {[%emt 0:00:02]} Qc5 {[%emt 0:01:28]} 68. Qh4+ {[%emt 0:01:07]} Kg7 {[%emt 0:01:02]} (68... Kg6 $11 69. Qg4+ (69. Qxf4 e2+ 70. Kh2 Qg5 $17) 69... Qg5 70. Qxd7 Qg3 71. Qe8+ Bf7 72. Qe4+ Kh6) 69. Qg4+ $16 {[%emt 0:00:15]} Kh8 $2 {[%emt 0:00:29]} (69... Kh7 $16 {was necessary.} 70. Qxd7+ Kg6) 70. Qh3+ $2 {[%emt 0:00:51]} (70. Qxf4 e2+ 71. Kh1 Qh5+ 72. Kg1 Qc5+ 73. Kh2 Qh5+ 74. Kg3 Kg7 $11) (70. Qxd7 $18 {[%cal Og2g3] Strongly threatening g3!} Kg8 71. Qh3 e2+ 72. Kh2 Qxd6 73. c8=Q+ Rxc8 74. Qxc8+ Kg7 75. Qg4+ (75. Qxc4 Qh6+ 76. Kg1 Qb6+ 77. Kh2 Qh6+ 78. Kg1 Qb6+ 79. Kh2 Qh6+ $11) 75... Kf6 76. g3) 70... Kg8 $11 {[%emt 0:00:18]} 71. Qg4+ $2 {[%emt 0:00:02]} (71. Qxd7 $11 e2+ 72. Kh1) 71... Kh8 $18 {[%emt 0:00:13]} 72. Qxf4 $2 {[%emt 0:01:18]} (72. Qxd7 $18 {[%cal Og2g3] Hoping for g3!} Kg8 73. Qh3 e2+ 74. Kh2 Qxd6 75. c8=Q+ Rxc8 76. Qxc8+ Kg7 77. Qg4+ (77. Qxc4 Qh6+ 78. Kg1 Qb6+ 79. Kh2 Qh6+ 80. Kg1 Qb6+ 81. Kh2 Qh6+ $11) 77... Kf6 78. g3) 72... e2+ $11 {[%emt 0:00:06]} 73. Kh2 {[%emt 0:00:07] Black must now prevent Qh6+. Really sharp!} Ba6 {[%emt 0:00:57]} 74. Qh6+ {[%emt 0:00:56]} Kg8 {[%emt 0:00:07]} 75. Qg6+ {[%emt 0:00:07]} Kf8 {[%emt 0:00:54]} 76. Qf6+ {[%emt 0:00:09]} Kg8 {[%emt 0:00:03]} 77. Qd8+ {[%emt 0:00:06]} Kg7 {[%emt 0:00:41]} 78. Qxd7+ {[%emt 0:00:02]} Kg6 {[%emt 0:00:14]} 79. Qg4+ {[%emt 0:00:39]} Kf7 {[%emt 0:00:47]} 80. Qf4+ {[%emt 0:00:35]} (80. Qd7+ $11 {is more appropriate.} Kg6 81. Qg4+ Kf7 82. Qd7+ Kg6) 80... Kg7 $2 {[%emt 0:01:31][%mdl 8192]} (80... Ke6 $15 81. Kh1 (81. Qh6+ $2 Kd7 $19) 81... Qc3 82. Qh6+ Kd7) 81. Qg4+ $2 {[%emt 0:01:54]} (81. d7 $18 Qh5+ 82. Kg3 Rg6+ 83. Kf2 Qc5+ 84. Qe3 Rxg2+ 85. Kxg2 Qxe3 86. d8=Q) 81... Kf7 {[%emt 0:00:18]} 82. Qd7+ {[%emt 0:00:03]} Kg6 {[%emt 0:00:23]} 83. Qe8+ {[%emt 0:00:48]} Kg7 {[%emt 0:00:47]} 84. Qe7+ {[%emt 0:00:29]} Kg8 {[%emt 0:00:35]} 85. Qe6+ {[%emt 0:00:42]} Kg7 $1 {[%emt 0:00:06]} 86. Qe7+ {[%emt 0:00:01]} Kg8 {[%emt 0:00:04]} 87. Qd8+ {[%emt 0:00:59]} Kg7 {[%emt 0:00:05]} 88. Qd7+ $40 {[%emt 0:00:30][%mdl 128] White attacks.} Kg8 {[%emt 0:00:22]} 89. Qe8+ {[%emt 0:00:30]} Kg7 {[%emt 0:00:02]} 90. Qd7+ {[%emt 0:00:32]} Kg8 {[%emt 0:00:04]} 91. Qe6+ {[%emt 0:00:30]} Kg7 $1 {[%emt 0:00:04]} 92. Qg4+ {[%emt 0:00:01]} Kf7 {[%emt 0:00:25]} 93. Qd7+ {[%emt 0:01:00]} Kg8 {[%emt 0:00:06]} 94. Qg4+ {[%emt 0:00:27]} ({Better is} 94. c8=Q+ $11 Bxc8 95. Qe8+ Kg7 96. Qe7+ Kg6 97. Qe8+ Kg7 98. Qe7+ Kg6 99. Qe8+ Kg7) 94... Kf7 $15 {[%emt 0:00:25]} 95. Qf4+ {[%emt 0:00:13]} Kg7 $2 {[%emt 0:00:24][%mdl 8192]} (95... Ke6 $15 96. Kh1 (96. Qh6+ $2 Kd7 $19) 96... Qc3) 96. d7 $18 {[%emt 0:00:37]} Qh5+ {[%emt 0:03:55]} 97. Kg1 {[%emt 0:00:01]} (97. Kg3 $142 Rg6+ 98. Kf2 Qc5+ 99. Qe3 Rxg2+ 100. Kxg2 Qxe3 101. d8=Q) 97... Qc5+ {[%emt 0:00:05]} 98. Kh2 (98. Kh1 $142 Rh6+ 99. Qxh6+ $3 {[%mdl 512]} Kxh6 100. d8=Q Qh5+ 101. Kg1 Qc5+ 102. Kh2 Qh5+ 103. Kg1 Qc5+ 104. Kh1 Qh5+ 105. Kg1) 98... Qh5+ {[%emt 0:00:30] [#]} 99. Kg3 $1 {[%emt 0:01:34] White is clearly winning.} Rg6+ {[%emt 0:00:50]} 100. Kf2 {[%emt 0:00:02] White threatens Qd4+ and mate.} Qc5+ {[%emt 0:00:14]} 101. Qe3 {[%emt 0:00:02]} Qd6 {[%emt 0:01:22] Both players deserved the win here.  Weighted Error Value: White=0.57/Black=0.40} 1-0

[Event "MPL 19th IND-ch Teams Women 2022"]
[Site "Jalgaon"]
[Date "2022.04.10"]
[Round "3.1"]
[White "Arpita, Mukherjee"]
[Black "Soumya, Swaminathan"]
[Result "1/2-1/2"]
[ECO "A45"]
[WhiteElo "2260"]
[BlackElo "2360"]
[Annotator "RC"]
[PlyCount "29"]
[EventDate "2022.04.10"]
[EventType "team-tourn"]
[EventCountry "IND"]
[SourceTitle "playchess.com"]
[Source "ChessBase"]
[SourceQuality "1"]
[TimeControl "5400+30"]

1. d4 Nf6 2. Bf4 g6 3. Nc3 d5 4. e3 Bg7 5. h4 h5 6. Be2 O-O 7. Nf3 c5 8. dxc5 Qa5 9. O-O Qxc5 10. Nb5 a6 11. Nc7 Ra7 12. Nb5 Ra8 13. Nc7 Ra7 14. Nb5 Ra8 15. Nc7 1/2-1/2

[Event "MPL 19th IND-ch Teams Women 2022"]
[Site "Jalgaon"]
[Date "2022.04.10"]
[Round "3.2"]
[White "Gomes, Mary Ann"]
[Black "Divya Deshmukh"]
[Result "0-1"]
[ECO "A06"]
[WhiteElo "2361"]
[BlackElo "2301"]
[Annotator "TA"]
[PlyCount "166"]
[EventDate "2022.04.10"]
[EventType "team-tourn"]
[EventCountry "IND"]
[SourceTitle "playchess.com"]
[Source "ChessBase"]
[SourceQuality "1"]
[TimeControl "5400+30"]

{[%evp 29,166,-43,-35,-49,-45,-66,-53,-57,-54,-64,-29,-33,-28,-33,-32,-33,-31,-35,-20,-33,-22,-33,-32,-38,-31,-69,-67,-251,-245,-193,-80,-72,-54,-55,-36,-74,-75,-60,-62,-62,-62,-194,-177,-220,-221,-162,0,0,0,-354,-336,-365,0,0,0,-360,-342,-332,-277,-323,-323,-320,-318,-302,-274,-842,-842,-1271,-1271,-895,-171,-5085,-1166,-1140,-113,-145,-8,-8,0,-1149,-809,-1143,-1110,-29943,-913,-6046,-4756,-6560,-6046,-29974,-632,-941,-333,-430,-387,-29978,-353,-318,-293,-300,-285,-272,-252,-29966,-29966,-29966,-29968,-29971,-29973,-29972,-29973,-29973,-29974,-29981,-29981,-29984,-29983,-29985,-29986,-29986,-29979,-29979,-29979,-29979,0,0,0,-29974,-29975,-29982,-29984,-29984,-29984,-29994,-29983,-29983,-29984,-29984,-29981]} 1. Nf3 {[%emt 0:00:16]} d5 {[%emt 0:00:06]} 2. g3 {[%emt 0:00:05]} Nf6 {[%emt 0:00:11]} 3. Bg2 {[%emt 0:00:07]} c5 {[%emt 0:00:11]} 4. c4 {[%emt 0:02:42]} d4 {[%emt 0:00:13]} 5. O-O {[%emt 0:00:14]} Nc6 {[%emt 0:00:20]} 6. d3 {[%emt 0:00:06]} e5 {[%emt 0:00:25]} 7. e3 {[%emt 0:00:23]} Be7 {[%emt 0:09:26]} 8. exd4 {[%emt 0:00:09]} exd4 {[%emt 0:00:22]} 9. Na3 {[%emt 0:03:48]} O-O {[%emt 0:00:30]} 10. Nc2 {[%emt 0:00:40]} h6 {[%emt 0:01:33]} 11. Re1 {[%emt 0:00:22]} Bf5 {[%emt 0:12:09]} 12. Ne5 {[%emt 0:00:39]} Nxe5 {[%emt 0:01:29]} 13. Rxe5 {[%emt 0:00:07]} Bg4 {[%emt 0:00:04]} 14. Bf3 {[%emt 0:01:30]} Bd6 {[%emt 0:02:42]} 15. Re1 {[%emt 0:00:22]} Qd7 {[%emt 0:02:30]} 16. Bxg4 {[%emt 0:11:25]} Nxg4 {[%emt 0:10:15]} 17. f3 {[%emt 0:01:44]} Nf6 {[%emt 0:02:51]} 18. Bd2 {[%emt 0:14:43]} Qf5 {[%emt 0:08:58]} 19. Qe2 {[%emt 0:00:10]} Nd7 {[%emt 0:03:44]} 20. f4 {[%emt 0:01:36]} Nf6 {[%emt 0:05:27]} 21. Kg2 {[%emt 0:02:17]} Qd7 {[%emt 0:03:25]} 22. Qf3 {[%emt 0:02:40]} Rfe8 {[%emt 0:03:45]} 23. b3 {[%emt 0:01:52]} a6 {[%emt 0:02:56]} 24. Rxe8+ {[%emt 0:03:43]} Rxe8 {[%emt 0:00:11]} 25. Re1 {[%emt 0:00:25]} b5 {[%emt 0:01:29]} 26. Rxe8+ {[%emt 0:04:16]} Qxe8 {[%emt 0:00:20]} 27. cxb5 {[%emt 0:00:34]} axb5 {[%emt 0:00:04]} 28. b4 $2 {[%emt 0:00:22]} (28. f5 $15) 28... Qe6 $1 $19 {[%emt 0:01:01]} 29. Qa8+ {[%emt 0:26:37]} Kh7 {[%emt 0:00:24]} (29... Bf8 $1 $19 {aiming for ...Qe2+.} 30. Kf1 Qg4) 30. Kf1 $17 {[%emt 0:02:02]} Qh3+ {[%emt 0:15:35]} 31. Qg2 {[%emt 0:02:48]} Qc8 {[%emt 0:00:13]} 32. bxc5 {[%emt 0:00:32]} Bxc5 {[%emt 0:00:18]} 33. a3 {[%emt 0:05:20]} Qe6 {[%emt 0:05:27]} 34. Bb4 {[%emt 0:02:48]} Bxb4 {[%emt 0:02:09]} 35. Nxb4 {[%emt 0:01:52]} ({White must play} 35. axb4 $15 Qb3 36. Qd2) 35... Qb3 $1 $19 {[%emt 0:00:47]} 36. Qc2 {[%emt 0:05:13]} Qxa3 {[%emt 0:01:03]} 37. Qc5 {[%emt 0:00:16]} Nd5 $2 {[%emt 0:05:51]} ({Better is} 37... Qa1+ $1 $19 38. Kg2 Qb2+ 39. Kh3 Qe2 40. Qf5+ Kh8 41. Qc8+ Ng8) 38. Qxd5 $11 {[%emt 0:01:14]} Qxb4 {[%emt 0:00:02]} 39. Qf5+ $2 {[%emt 0:01:27][%mdl 8192]} ({Much weaker is} 39. Qxf7 Qb1+ 40. Kf2 Qc2+ 41. Kg1 Qxd3 $17) (39. Ke2 $11 {and White stays safe.}) 39... Kg8 $19 {[%emt 0:00:01]} 40. Qc8+ {[%emt 0:00:12]} Kh7 {[%emt 0:00:06]} 41. Qf5+ {[%emt 0:00:05]} Kg8 {[%emt 0:00:01]} 42. Qc8+ $1 {[%emt 0:00:08]} Qf8 {[%emt 0:00:02]} 43. Qc6 {[%emt 0:02:43]} ({Weaker is} 43. Qd7 Qc5 44. Qe8+ Kh7 45. Qxf7 Qc1+ 46. Kf2 Qe3+ 47. Kg2 Qe2+ 48. Kg1 Qe1+ 49. Kg2 Qe2+ 50. Kg1 Qe3+ 51. Kg2 Qe2+ $19) 43... b4 {[%emt 0:01:57]} 44. Qb6 {[%emt 0:01:04]} Qa8 {[%emt 0:00:40]} 45. Qxb4 {[%emt 0:00:28]} Qf3+ {[%emt 0:00:26]} 46. Kg1 {[%emt 0:00:42]} Qxd3 {[%emt 0:00:06]} 47. Qe7 $2 {[%emt 0:00:28]} (47. Qb7) 47... f5 $1 $19 {[%emt 0:00:46]} 48. Qe8+ {[%emt 0:00:31]} Kh7 {[%emt 0:00:01]} 49. Qe1 {[%emt 0:00:14]} Qc2 $2 (49... Qb3 50. Qe5 Qb1+ 51. Kf2 Qe4) 50. Qe5 $2 {[%emt 0:00:44]} (50. Qa5) 50... Qb1+ {[%emt 0:02:09]} (50... Qe4 $142 51. Qa5 Qe3+ 52. Kf1 Kg6 53. Qb6+ Kh5) 51. Kf2 $19 {[%emt 0:00:16]} Qd3 $2 {[%emt 0:00:20]} (51... Qe4 $1 $19 {[%cal Re4e5] and Black stays clearly on top. Hoping for ...Qxe5.} 52. Qc5 Qe3+ 53. Kg2 Kg6 54. Qc6+ Kh5) 52. Qe2 {[%emt 0:00:53]} Qc3 {[%emt 0:00:34]} ({Black should try} 52... Qe4 $1 $17 {White must now prevent ...Qh1.} 53. Qd2 Kg6) 53. Qe5 $1 $11 {[%emt 0:00:23]} Qc2+ {[%emt 0:00:02]} 54. Kf3 $2 {[%emt 0:00:15][%mdl 8192]} (54. Kg1 $11) 54... Qc6+ {[%emt 0:00:58]} 55. Kf2 {[%emt 0:00:09]} Qe4 $1 {[%emt 0:00:11]} 56. h4 {[%emt 0:01:10]} d3 {[%emt 0:00:56]} (56... Kg6 $142 57. Qa5 Qc2+ 58. Kf1 Kh5 59. Qe5 Kg4 60. Qxd4 Kf3 61. Qd5+ Kxg3 62. Qd4 Qg2+ 63. Ke1 Qe4+ 64. Qxe4 fxe4 65. f5 Kxh4 66. f6 gxf6 67. Kd2 Kg4 68. Ke2 f5 69. Kd2 h5 70. Kc2 h4 71. Kd1 h3 72. Ke2 h2 73. Ke3 h1=Q 74. Kd4 e3 75. Kc4 e2 76. Kc5 e1=Q 77. Kb6 Qb4+ 78. Kc7 Qhb7+ 79. Kd8 Qf8#) 57. Qb2 $19 {[%emt 0:00:12]} Kg6 {[%emt 0:00:30]} 58. Qd2 {[%emt 0:00:37]} Qd4+ {[%emt 0:00:12]} 59. Kg2 {[%emt 0:00:13]} Kf6 {[%emt 0:00:03]} (59... Qc4 $142 60. Kf2 Qc2 61. Ke3 Qxd2+ 62. Kxd2 Kh5 63. Kxd3 Kg4 64. Ke3 Kxg3 65. h5 Kg4 66. Kf2 Kxf4 67. Kg2 Kg4 68. Kh2 Kxh5 69. Kg3 g5 70. Kf3 g4+ 71. Kf4 Kg6 72. Ke3 Kg5 73. Kd4 f4 74. Ke4 f3 75. Ke3 Kf5 76. Kf2 Kf4 77. Ke1 g3 78. Kf1 g2+ 79. Ke1 g1=Q+ 80. Kd2 f2 81. Kd3 f1=Q+ 82. Kc3 Ke4 83. Kb3 Qb1+ 84. Kc4 Qd4#) 60. h5 {[%emt 0:00:39]} Ke7 $2 {[%emt 0:00:27]} (60... g6 61. Kf1 gxh5) 61. Kf3 {[%emt 0:00:08]} Kd6 {[%emt 0:00:45]} 62. Qe3 $2 {[%emt 0:01:10]} (62. Qd1 $19 Ke7 63. Qe1+ Kf7 64. Qd2) 62... Kd5 $2 {[%emt 0:01:06]} (62... Qd5+ 63. Kf2 d2 64. Qe5+ Qxe5 65. fxe5+ Kxe5 66. Ke2 Ke4 67. Kxd2 Kf3 68. Ke1 Kxg3 69. Ke2 f4 70. Kf1 Kf3 71. Ke1 Kg2 72. Kd1 f3 73. Kc2 f2 74. Kc3 f1=Q 75. Kb4 Kf3 76. Kc5 Ke4 77. Kd6 Qc4 78. Kd7 Kf5 79. Ke7 Qc7+ 80. Kf8 Kf6 81. Kg8 g5 82. hxg6 Qg7#) 63. Qd2 $19 {[%emt 0:00:05]} Kc4 {[%emt 0:00:30]} 64. Qa2+ {[%emt 0:00:28]} Kb4 {[%emt 0:00:01]} 65. Qb1+ {[%emt 0:00:41]} Kc5 {[%emt 0:00:06]} 66. Qc1+ $2 {[%emt 0:00:11]} (66. Qd1 $19) 66... Qc4 $1 {[%emt 0:00:38]} 67. Qa3+ {[%emt 0:00:44]} Kc6 {[%emt 0:00:16]} 68. Qa8+ {[%emt 0:00:24]} Kb5 {[%emt 0:00:31]} 69. Qe8+ {[%emt 0:00:52]} Kb4 {[%emt 0:00:21]} 70. Qe1+ {[%emt 0:00:29]} Qc3 {[%emt 0:00:04]} 71. Qe7+ {[%emt 0:00:21]} Kb3 {[%emt 0:00:05]} 72. Qe6+ {[%emt 0:00:38]} Kc2 {[%emt 0:00:21]} 73. Qa2+ {[%emt 0:00:23]} Kc1 {[%emt 0:00:03]} 74. Qa4 {[%emt 0:00:44]} Kd2 {[%emt 0:02:21]} ({Inferior is} 74... d2+ 75. Ke2 $11) 75. Qa2+ {[%emt 0:00:37]} Qc2 $1 {[%emt 0:00:03]} 76. Qa5+ {[%emt 0:00:07] [#]} Kc1 $2 {[%emt 0:01:20]} (76... Kd1 $1 {mates} 77. Qa1+ Qc1 78. Qe5 Qc6+ 79. Kf2 Qc2+ 80. Ke3 Qb3 81. Kf2 d2 82. Qc7 Qd3 83. g4 Qe2+ 84. Kg3 Qxg4+ 85. Kf2 Qe2+ 86. Kg1 Qe3+ 87. Kg2 Ke1 88. Qa5 Qf2+ 89. Kh1 Kf1 90. Qa6+ Qe2 91. Qg6 Qf3+ 92. Kh2 Qf2+ 93. Kh3 d1=Q 94. Qa6+ Qfe2 95. Kg3 Qxa6 96. Kh3 Qxh5+ 97. Kg3 Qag6#) 77. Qa1+ $11 {[%emt 0:00:05]} Qb1 {[%emt 0:00:05]} 78. Qa3+ $2 {[%emt 0:00:28][%mdl 8192] [#]} (78. Qc3+ $11 Qc2 79. Qa3+ Kd1 80. Qa1+ Kd2 81. Qa5+ Qc3 82. Qa4) 78... Kd1 $1 {[%emt 0:00:30]} 79. Qa4+ {[%emt 0:00:53]} Ke1 {[%emt 0:00:04]} 80. Qe8+ {[%emt 0:00:53]} Kf1 {[%emt 0:00:04]} 81. Qc6 {[%emt 0:00:32]} Qd1+ {[%emt 0:00:10]} 82. Ke3 {[%emt 0:00:04]} Qe2+ {[%emt 0:00:02]} 83. Kd4 {[%emt 0:00:07]} Qe4+ {[%emt 0:00:02]} 0-1

[Event "MPL 19th IND-ch Teams Women 2022"]
[Site "Jalgaon"]
[Date "2022.04.10"]
[Round "3.3"]
[White "Priyanka Nutakki"]
[Black "Karavade, Eesha"]
[Result "1/2-1/2"]
[ECO "D02"]
[WhiteElo "2301"]
[BlackElo "2345"]
[Annotator "RC"]
[PlyCount "62"]
[EventDate "2022.04.10"]
[EventType "team-tourn"]
[EventCountry "IND"]
[SourceTitle "playchess.com"]
[Source "ChessBase"]
[SourceQuality "1"]
[TimeControl "5400+30"]

1. d4 {[%emt 0:00:07]} d5 {[%emt 0:00:20]} 2. Nf3 {[%emt 0:00:27]} Nf6 {[%emt 0:00:19]} 3. Bf4 {[%emt 0:00:11]} c5 {[%emt 0:01:29]} 4. e3 {[%emt 0:00:19]} Nc6 {[%emt 0:00:25]} 5. Nbd2 {[%emt 0:00:21]} Qb6 {[%emt 0:03:40]} 6. dxc5 {[%emt 0:00:15]} Qxb2 {[%emt 0:00:08]} 7. Rb1 {[%emt 0:00:09]} Qc3 {[%emt 0:00:06]} 8. Bb5 {[%emt 0:00:08]} g6 {[%emt 0:18:42]} 9. O-O {[%emt 0:07:45]} Bg7 {[%emt 0:01:54]} 10. Nb3 {[%emt 0:09:04]} O-O {[%emt 0:03:55]} 11. Bxc6 {[%emt 0:28:34]} bxc6 {[%emt 0:00:14]} 12. Nfd4 {[%emt 0:00:50]} Ba6 {[%emt 0:12:27]} 13. Re1 {[%emt 0:02:44]} Rac8 {[%emt 0:03:18]} 14. Qc1 {[%emt 0:02:05]} Ne4 {[%emt 0:04:54]} 15. Nf3 {[%emt 0:11:14]} e5 {[%emt 0:04:45]} 16. Bg3 {[%emt 0:00:23]} Bb5 {[%emt 0:01:26]} 17. Qa3 {[%emt 0:10:37]} a5 {[%emt 0:17:00]} 18. Qxa5 {[%emt 0:02:54]} Qxa5 {[%emt 0:01:09]} 19. Nxa5 {[%emt 0:00:02]} Ra8 {[%emt 0:00:41]} 20. Nb7 {[%emt 0:00:54]} Nxg3 {[%emt 0:01:35]} 21. hxg3 {[%emt 0:00:06]} Rxa2 {[%emt 0:00:05]} 22. Nd6 {[%emt 0:01:06]} Rxc2 {[%emt 0:02:53]} 23. Nxb5 {[%emt 0:00:26]} cxb5 {[%emt 0:00:03]} 24. Rxb5 {[%emt 0:00:28]} Rc8 {[%emt 0:00:05]} 25. c6 {[%emt 0:01:22]} d4 {[%emt 0:04:49]} 26. Nxe5 {[%emt 0:01:21]} Bxe5 {[%emt 0:00:08]} 27. Rxe5 {[%emt 0:00:04]} dxe3 {[%emt 0:00:09]} 28. R5xe3 {[%emt 0:00:10]} R8xc6 {[%emt 0:00:09]} 29. R3e2 {[%emt 0:00:26]} h5 {[%emt 0:00:15]} 30. f3 {[%emt 0:01:51]} Rxe2 {[%emt 0:00:19]} 31. Rxe2 {[%emt 0:00:02]} Kg7 {[%emt 0:00:07]} 1/2-1/2